bitfinex-derivatives/quotes_SOLF0:USTF0_20250720
["timestamp","ask_amount","ask_price","bid_price","bid_amount"]
[1753014091360,110.12,180.28,180.27,3.06]
[1753014091762,110.12,180.28,180.27,8.6048]
[1753014091962,107.1,180.28,180.27,8.6048]
[1753014094163,110.12,180.28,180.27,8.6048]
[1753014094464,110.12,180.28,180.27,5.5448]
[1753014094767,3.02,180.27,180.26,5.5449]
[1753014094967,3.02,180.27,180.23,3.06]
[1753014095567,3.02,180.27,180.26,5.5451]
[1753014096469,3.02,180.27,180.26,8.6051]
[1753014097968,107.1,180.28,180.27,5.5448]
[1753014098268,110.12,180.28,180.27,8.6048]
[1753014100067,3.02,180.28,180.27,5.5448]
[1753014100271,109.84,180.28,180.27,8.6048]
[1753014102367,106.82,180.28,180.27,8.6048]
[1753014102572,376.08,180.32,180.23,3.06]
[1753014102871,106.8,180.31,180.23,3.06]
[1753014103472,106.8,180.31,180.3,5.5438]
[1753014103673,106.8,180.31,180.3,8.6038]
[1753014104470,109.82,180.31,180.3,8.6038]
[1753014105376,106.8,180.31,180.3,8.6038]
[1753014106172,109.82,180.31,180.3,8.6038]
[1753014108277,106.8,180.31,180.3,8.6038]
[1753014109679,109.82,180.31,180.3,8.6038]
[1753014110776,106.8,180.31,180.3,8.6038]
[1753014111483,3.02,180.38,180.31,3.06]
[1753014111676,3.02,180.36,180.31,3.06]
[1753014111880,3.02,180.35,180.32,5.5429]
[1753014112181,3.02,180.35,180.29,3.06]
[1753014112377,106.8,180.34,180.29,3.06]
[1753014112581,3.02,180.33,180.29,3.06]
[1753014112883,3.02,180.32,180.29,3.06]
[1753014113080,106.8,180.34,180.32,5.5431]
[1753014113683,3.02,180.33,180.32,5.5431]
[1753014114983,3.02,180.33,180.31,5.5434]
[1753014115384,3.02,180.33,180.3,3.06]
[1753014115584,3.02,180.33,180.31,5.5435]
[1753014115883,3.02,180.33,180.23,3.06]
[1753014116082,3.02,180.33,180.32,5.5432]
[1753014116879,3.02,180.33,180.31,5.5434]
[1753014117787,3.02,180.33,180.31,8.6034]
[1753014119286,3.02,180.33,180.32,5.5432]
[1753014120185,3.02,180.33,180.31,8.6034]
[1753014120885,3.02,180.33,180.31,5.5434]
[1753014121081,3.02,180.33,180.22,11.0922]
[1753014121389,3.02,180.33,180.26,3.15]
[1753014121588,3.11,180.31,180.28,8.6943]
[1753014121888,3.11,180.29,180.28,8.6943]
[1753014122084,3.11,180.34,180.18,16.6425]
[1753014122390,106.76,180.34,180.21,7.79371201]
[1753014122684,106.76,180.34,180.33,8.6927]
[1753014124186,0.96517868,180.39,180.38,3.15]
[1753014124393,107.72517868,180.39,180.38,3.15]
[1753014124690,3.11,180.38,180.36,8.6919]
[1753014124890,3.11,180.37,180.36,8.6919]
[1753014125280,107.72517868,180.39,180.25,4.64371201]
[1753014125485,106.76,180.39,180.29,3.15]
[1753014126192,106.76,180.39,180.38,8.6914]
[1753014126492,482.73,180.42,180.39,3.15]
[1753014126790,482.73,180.42,180.4,8.6906]
[1753014128793,482.73,180.42,180.41,3.15]
[1753014128991,109.85,180.42,180.41,3.15]
[1753014129293,109.85,180.42,180.41,8.6905]
[1753014129893,106.74,180.42,180.41,8.6905]
[1753014130792,3.11,180.46,180.44,5.5394]
[1753014130997,3.11,180.46,180.45,3.15]
[1753014131197,109.83,180.46,180.45,3.15]
[1753014131399,109.83,180.46,180.45,8.6892]
[1753014131798,3.11,180.45,180.34,11.0849]
[1753014131999,3.11,180.44,180.42,3.15]
[1753014132299,3.11,180.45,180.35,3.15]
[1753014132597,106.72,180.46,180.35,3.15]
[1753014133294,106.72,180.46,180.45,8.6892]
[1753014133689,106.72,180.46,180.45,3.15]
[1753014134198,106.72,180.46,180.45,8.6892]
[1753014134399,106.72,180.46,180.45,3.15]
[1753014135301,3.11,180.5,180.45,3.15]
[1753014135607,106.7,180.49,180.45,3.15]
[1753014135993,106.7,180.49,180.48,5.5383]
[1753014136300,106.7,180.49,180.48,8.6883]
[1753014136497,106.7,180.49,180.48,3.15]
[1753014136698,106.7,180.49,180.48,8.6883]
[1753014138995,109.77,180.53,180.51,3.15]
[1753014139197,109.77,180.53,180.41,3.15]
[1753014139594,109.77,180.53,180.52,3.15]
[1753014140405,106.66,180.53,180.52,3.15]
[1753014140702,109.77,180.53,180.52,3.15]
[1753014140906,115.3068,180.53,180.52,3.15]
[1753014141307,3.11,180.56,180.52,3.15]
[1753014141503,106.66,180.55,180.52,3.15]
[1753014142206,109.77,180.55,180.52,3.15]
[1753014142906,106.66,180.55,180.4,11.0815]
[1753014143100,3.11,180.53,180.43,3.15]
[1753014143304,106.64,180.52,180.51,5.5372]
[1753014143507,106.64,180.52,180.51,8.6872]
[1753014143911,372.54,180.62,180.55,3.15]
[1753014143912,3.11,180.56,180.55,3.15]
[1753014144211,115.2857,180.57,180.56,3.15]
[1753014145214,109.75,180.57,180.56,3.15]
[1753014146015,115.2855,180.57,180.56,3.15]
[1753014146403,109.75,180.57,180.56,3.15]
[1753014146604,3.11,180.61,180.56,3.15]
[1753014146909,109.75,180.61,180.56,3.15]
[1753014147110,109.75,180.61,180.58,5.535]
[1753014147304,109.75,180.61,180.59,3.15]
[1753014147509,3.11,180.6,180.59,3.15]
[1753014148214,5.5352,180.59,180.57,3.23]
[1753014148511,109.71,180.58,180.57,3.23]
[1753014148709,109.71,180.58,180.57,8.7655]
[1753014149511,109.71,180.58,180.57,3.23]
[1753014151414,3.09,180.57,180.47,3.23]
[1753014151715,3.09,180.57,180.54,5.5364]
[1753014151915,3.09,180.57,180.54,8.7664]
[1753014152213,372.54,180.62,180.59,3.23]
[1753014152418,106.6,180.61,180.59,3.23]
[1753014152718,109.69,180.61,180.6,3.23]
[1753014153516,3.09,180.6,180.5,3.23]
[1753014154213,3.09,180.58,180.5,3.23]
[1753014154417,106.6,180.57,180.5,3.23]
[1753014154614,106.6,180.57,180.56,5.5359]
[1753014154916,109.69,180.57,180.56,3.23]
[1753014155125,3.09,180.55,180.54,8.7663]
[1753014156114,3.09,180.55,180.54,5.5363]
[1753014156419,3.09,180.54,180.53,3.23]
[1753014156817,3.09,180.54,180.53,8.7668]
[1753014157318,106.6,180.57,180.49,3.23]
[1753014157519,106.6,180.57,180.48,125.56825532]
[1753014157520,109.69,180.57,180.56,8.7659]
[1753014157913,3.09,180.57,180.56,8.7659]
[1753014158116,109.65,180.57,180.56,8.7659]
[1753014158314,109.65,180.57,180.56,3.23]
[1753014158518,106.56,180.57,180.48,125.56825532]
[1753014158711,106.56,180.57,180.55,3.23]
[1753014158915,3.09,180.56,180.54,3.23]
[1753014159218,3.09,180.56,180.55,8.766]
[1753014159415,3.09,180.56,180.49,3.23]
[1753014160018,3.09,180.56,180.53,8.7666]
[1753014161118,3.09,180.56,180.53,3.23]
[1753014161320,3.09,180.56,180.52,5.537]
[1753014161620,3.09,180.56,180.52,3.23]
[1753014161814,3.09,180.56,180.53,5.5366]
[1753014162121,3.09,180.56,180.55,3.23]
[1753014163017,3.09,180.56,180.55,8.7662]
[1753014163218,3.09,180.61,180.49,3.23]
[1753014163418,106.56,180.6,180.57,5.5353]
[1753014163614,3.09,180.59,180.58,3.23]
[1753014164119,3.09,180.59,180.58,8.7652]
[1753014165418,372.54,180.62,180.59,8.7648]
[1753014165623,3.09,180.6,180.59,8.7648]
[1753014167819,3.09,180.6,180.59,3.23]
[1753014168031,3.09,180.6,180.58,5.5352]
[1753014168328,3.09,180.59,180.58,8.7652]
[1753014169426,3.09,180.59,180.58,3.23]
[1753014169728,3.09,180.59,180.57,5.5355]
[1753014169929,106.54,180.58,180.57,8.7655]
[1753014171234,106.54,180.58,180.57,3.23]
[1753014172637,106.54,180.58,180.57,8.7656]
[1753014174136,106.52,180.61,180.6,3.23]
[1753014174434,109.61,180.61,180.6,3.23]
[1753014176139,106.52,180.61,180.6,8.7647]
[1753014177334,106.52,180.61,180.6,3.23]
[1753014177533,109.61,180.61,180.6,3.23]
[1753014177935,109.61,180.61,180.6,8.7647]
[1753014178135,106.52,180.61,180.6,8.7647]
[1753014179548,109.46,180.64,180.63,3.03]
[1753014180629,106.48,180.64,180.63,3.03]
[1753014181040,109.46,180.64,180.63,3.03]
[1753014181745,2.98,180.63,180.61,3.03]
[1753014182141,2.98,180.62,180.61,3.03]
[1753014182335,2.98,180.62,180.49,4.64371201]
[1753014182336,2.98,180.62,180.5,3.03]
[1753014183336,2.98,180.61,180.5,3.03]
[1753014183538,109.44,180.6,180.56,3.03]
[1753014183734,2.98,180.59,180.56,3.03]
[1753014184441,2.98,180.58,180.57,3.03]
[1753014185544,2.98,180.59,180.49,3.03]
[1753014185743,2.98,180.59,180.55,3.03]
[1753014186244,2.98,180.59,180.56,3.03]
[1753014189246,112.67456537,180.6,180.54,5.5365]
[1753014189447,2.98,180.58,180.57,3.03]
[1753014190951,2.98,180.58,180.49,3.03]
[1753014191151,106.44,180.58,180.49,3.03]
[1753014191848,106.44,180.58,180.56,3.03]
[1753014192646,109.42,180.58,180.57,3.03]
[1753014193150,106.44,180.58,180.57,3.03]
[1753014193350,106.44,180.58,180.57,8.5656]
[1753014194756,109.42,180.58,180.57,3.03]
[1753014196055,2.98,180.57,180.49,3.03]
[1753014196553,2.98,180.57,180.53,5.5366]
[1753014196857,2.98,180.57,180.54,3.03]
[1753014197556,2.98,180.57,180.52,3.03]
[1753014197756,2.98,180.57,180.53,3.03]
[1753014198057,2.98,180.56,180.51,3.03]
[1753014199452,2.98,180.56,180.52,3.03]
[1753014200153,2.98,180.56,180.53,3.03]
[1753014201049,6.21456537,180.58,180.51,5.5374]
[1753014201252,2.98,180.59,180.49,3.03]
[1753014201452,106.38,180.6,180.5,3.03]
[1753014201655,106.38,180.6,180.56,5.5358]
[1753014201860,106.38,180.6,180.57,3.03]
[1753014202658,109.36,180.6,180.57,3.03]
[1753014203663,9.19456537,180.64,180.51,3.03]
[1753014203862,106.38,180.63,180.51,3.03]
[1753014204263,2.98,180.62,180.51,3.03]
[1753014204562,112.57456537,180.64,180.51,3.03]
[1753014205067,109.34,180.65,180.53,3.03]
[1753014205564,109.34,180.65,180.62,3.03]
[1753014208462,3.21,180.64,180.62,3.03]
[1753014208862,106.36,180.65,180.62,3.03]
[1753014209166,3.21,180.63,180.62,3.03]
[1753014210762,3.21,180.62,180.61,3.16]
[1753014211168,3.21,180.64,180.62,3.16]
[1753014211465,3.21,180.64,180.63,3.16]
[1753014211866,109.57,180.65,180.61,5.5343]
[1753014212067,3.21,180.64,180.62,5.534]
[1753014213067,106.36,180.65,180.62,5.534]
[1753014213468,109.57,180.65,180.62,5.534]
[1753014213664,3.21,180.68,180.64,5.5332]
[1753014214060,3.21,180.67,180.66,3.16]
[1753014214769,3.21,180.69,180.56,3.16]
[1753014215071,3.21,180.69,180.57,3.16]
[1753014215270,3.21,180.69,180.66,5.5326]
[1753014215566,9.32184806,180.74,180.57,14.2312]
[1753014215567,6.21456537,180.77,180.67,3.16]
[1753014215771,381.52184806,180.8,180.68,5.532]
[1753014215772,11.74516537,180.74,180.68,5.532]
[1753014216065,3.21,180.71,180.7,3.16]
[1753014216272,3.21,180.73,180.72,3.16]
[1753014218263,12.42913075,180.85,180.72,3.16]
[1753014218264,6.1820947,180.81,180.73,3.16]
[1753014218463,9.32184806,180.87,180.73,3.16]
[1753014218661,102.68,180.86,180.73,3.16]
[1753014218869,5.5273,180.84,180.77,3.16]
[1753014219269,102.68,180.86,180.77,3.16]
[1753014219771,0.96272218,180.84,180.77,3.16]
[1753014220265,3.21,180.83,180.77,3.16]
[1753014220472,3.21,180.83,180.64,3.16]
[1753014220869,5.5286,180.8,180.72,5.5308]
[1753014221065,3.21,180.77,180.74,3.16]
[1753014221275,3.21,180.76,180.74,3.16]
[1753014221467,3.21,180.76,180.75,3.16]
[1753014223271,109.39,180.77,180.75,3.16]
[1753014223576,106.16,180.78,180.76,3.16]
[1753014223977,106.16,180.78,180.77,3.16]
[1753014227579,3.21,180.82,180.77,3.16]
[1753014227771,109.31,180.81,180.77,3.16]
[1753014228278,106.1,180.81,180.77,3.16]
[1753014229278,3.21,180.86,180.77,3.16]
[1753014229477,3.21,180.88,180.85,3.16]
[1753014229778,3.21,180.87,180.86,3.16]
[1753014229978,106.08,180.88,180.86,3.16]
[1753014230184,106.08,180.88,180.87,3.16]
[1753014230387,3.21,180.89,180.87,3.16]
[1753014230879,3.21,180.89,180.88,3.16]
[1753014232282,3.21,180.87,180.86,3.16]
[1753014232486,3.21,180.89,180.86,3.16]
[1753014232684,3.21,180.88,180.87,3.16]
[1753014233682,3.21,180.88,180.85,5.527]
[1753014233878,3.21,180.88,180.86,3.16]
[1753014234582,3.21,180.87,180.86,3.16]
[1753014235780,106.0,180.9,180.86,3.16]
[1753014235983,109.21,180.9,180.87,5.5262]
[1753014236175,109.21,180.9,180.89,3.16]
[1753014238078,2.94,180.89,180.81,3.23]
[1753014238685,2.94,180.89,180.76,114.94658046]
[1753014238882,2.94,180.89,180.83,3.23]
[1753014239582,5.5264,180.88,180.84,3.23]
[1753014239876,106.0,180.9,180.85,3.23]
[1753014239877,2.94,180.86,180.85,3.23]
[1753014240681,5.5265,180.87,180.76,114.94658046]
[1753014240882,2.94,180.87,180.84,3.23]
[1753014241190,2.94,180.86,180.85,3.23]
[1753014243082,8.4662,180.88,180.85,3.23]
[1753014243289,2.94,180.89,180.77,3.23]
[1753014243585,108.86,180.89,180.77,3.23]
[1753014243882,108.86,180.89,180.88,3.23]
[1753014244189,2.94,180.88,180.77,3.23]
[1753014244381,5.5273,180.85,180.81,3.23]
[1753014244578,2.94,180.83,180.8,5.5286]
[1753014244787,106.8825491,180.89,180.82,3.23]
[1753014244986,106.8825491,180.89,180.76,114.94658046]
[1753014245186,2.94,180.84,180.83,3.23]
[1753014246388,2.94,180.86,180.82,3.23]
[1753014247078,2.94,180.86,180.84,3.23]
[1753014247278,106.8825491,180.89,180.84,3.23]
[1753014247483,2.94,180.84,180.81,3.23]
[1753014247785,2.94,180.84,180.82,3.23]
[1753014247986,2.94,180.84,180.83,3.23]
[1753014248486,2.94,180.84,180.76,114.94658046]
[1753014248677,2.94,180.82,180.66,3.23]
[1753014248884,2.94,180.81,180.66,3.23]
[1753014249084,2.94,180.79,180.74,5.5301]
[1753014249288,2.94,180.78,180.77,3.23]
[1753014250184,2.94,180.8,180.78,3.23]
[1753014250389,5.5284,180.81,180.78,3.23]
[1753014250795,2.94,180.79,180.78,3.23]
[1753014250988,105.86,180.82,180.76,3.23]
[1753014251292,2.94,180.77,180.66,3.23]
[1753014251694,5.5294,180.78,180.65,11.0662]
[1753014251992,2.94,180.77,180.66,3.23]
[1753014252894,2.94,180.76,180.74,3.23]
[1753014253089,2.94,180.76,180.75,3.23]
[1753014255198,5.5289,180.8,180.75,5.53]
[1753014255495,5.5289,180.8,180.77,3.23]
[1753014255695,2.94,180.78,180.77,3.23]
[1753014256292,2.94,180.77,180.65,11.0662]
[1753014256595,2.94,180.77,180.66,3.23]
[1753014256991,2.94,180.77,180.73,5.5305]
[1753014257191,2.94,180.77,180.74,3.23]
[1753014257394,2.94,180.76,180.74,3.23]
[1753014257794,2.94,180.77,180.73,8.7605]
[1753014257999,2.94,180.77,180.74,3.23]
[1753014258202,2.94,180.76,180.74,3.23]
[1753014258800,2.94,180.76,180.73,5.5305]
[1753014259002,2.94,180.76,180.75,3.23]
[1753014260206,2.94,180.76,180.73,8.7607]
[1753014260399,5.5292,180.78,180.74,3.23]
[1753014260400,2.94,180.75,180.74,3.23]
[1753014260899,2.94,180.79,180.66,3.23]
[1753014261500,8.4689,180.79,180.66,3.23]
[1753014261807,2.94,180.78,180.66,3.23]
[1753014262706,2.94,180.77,180.74,3.23]
[1753014262906,2.94,180.77,180.75,3.23]
[1753014263511,2.94,180.79,180.75,3.23]
[1753014263907,2.94,180.78,180.75,8.7599]
[1753014264103,2.94,180.78,180.76,3.23]
[1753014264310,2.94,180.77,180.76,3.23]
[1753014265010,2.94,180.79,180.78,3.23]
[1753014266311,2.94,180.79,180.74,8.7601]
[1753014266612,2.94,180.77,180.76,3.23]
[1753014268914,162.93423042,180.84,180.64,4.57696444]
[1753014268915,3.08,180.83,180.81,3.07]
[1753014269110,3.08,180.83,180.82,3.07]
[1753014269716,3.08,180.82,180.81,3.07]
[1753014270911,3.08,180.87,180.81,3.07]
[1753014271113,106.6625491,180.89,180.81,3.07]
[1753014271308,106.6625491,180.89,180.76,11.0595]
[1753014271309,105.7,180.89,180.76,11.0595]
[1753014271509,3.08,180.88,180.76,11.0595]
[1753014271708,3.08,180.88,180.87,3.07]
[1753014273825,105.7,180.89,180.76,11.0595]
[1753014274021,105.7,180.89,180.88,3.07]
[1753014275029,108.78,180.89,180.88,3.07]
[1753014276027,105.7,180.89,180.88,3.07]
[1753014276524,108.78,180.89,180.78,3.07]
[1753014276719,3.08,180.88,180.78,3.07]
[1753014277318,3.08,180.88,180.86,5.5265]
[1753014277721,105.7,180.89,180.87,3.07]
[1753014278523,105.7,180.89,180.88,3.07]
[1753014279316,371.86,180.93,180.88,3.07]
[1753014279515,3.08,180.92,180.88,3.07]
[1753014279923,3.08,180.91,180.88,3.07]
[1753014280729,3.08,180.91,180.89,5.5258]
[1753014280915,3.08,180.91,180.78,3.07]
[1753014282027,3.08,180.91,180.77,11.059]
[1753014282028,3.08,180.91,180.89,5.5257]
[1753014282217,3.08,180.91,180.9,3.07]
[1753014283926,3.08,180.9,180.89,3.07]
[1753014284425,3.08,180.92,180.89,3.07]
[1753014285025,3.08,180.92,180.91,5.5252]
[1753014285222,3.08,180.93,180.92,3.07]
[1753014285527,111.1044,180.94,180.8,11.057]
[1753014285826,3.08,180.92,180.89,3.07]
[1753014286427,3.08,180.92,180.89,8.5956]
[1753014286726,3.08,180.91,180.9,3.07]
[1753014287429,3.08,180.93,180.9,3.07]
[1753014287622,105.58,180.94,180.91,3.07]
[1753014287818,3.08,180.92,180.91,3.07]
[1753014288324,3.08,180.93,180.92,3.07]
[1753014289826,3.08,180.93,180.92,8.5949]
[1753014290029,105.5,180.97,180.77,4.57696444]
[1753014290030,3.08,180.94,180.93,3.07]
[1753014290226,3.08,180.96,180.95,3.07]
[1753014290726,3.08,180.96,180.94,5.5241]
[1753014290922,3.08,180.96,180.94,8.5941]
[1753014291121,3.08,180.96,180.85,3.07]
[1753014292219,3.08,180.95,180.94,8.5941]
[1753014293231,3.08,180.95,180.94,3.07]
[1753014293626,3.08,180.95,180.94,8.5943]
[1753014296431,3.08,180.95,180.94,3.07]
[1753014297234,3.08,180.95,180.94,8.5943]
[1753014299133,3.08,180.95,180.94,3.07]
[1753014299935,3.08,180.95,180.94,8.5943]
[1753014300634,108.67,180.97,180.96,3.16]
[1753014301235,108.67,180.97,180.94,8.6842]
[1753014301434,3.17,180.96,180.94,5.5242]
[1753014301929,3.17,180.96,180.86,11.0532]
[1753014302128,3.17,180.96,180.87,3.16]
[1753014302332,3.17,180.95,180.87,3.16]
[1753014303736,3.17,180.94,180.93,3.16]
[1753014304836,3.17,180.94,180.93,8.6846]
[1753014305234,105.5,180.97,180.93,3.16]
[1753014305441,3.17,180.95,180.87,3.16]
[1753014306239,114.1935,180.97,180.87,3.16]
[1753014306637,108.67,180.97,180.96,3.16]
[1753014307335,108.67,180.97,180.96,8.6837]
[1753014308743,108.67,180.97,180.96,3.16]
[1753014309440,108.67,180.97,180.96,8.6837]
[1753014310342,3.17,180.98,180.97,8.6834]
[1753014312340,3.17,181.0,180.98,5.5229]
[1753014312642,3.17,180.99,180.98,8.6829]
[1753014314543,105.32,181.01,180.98,8.6829]
[1753014314544,108.49,181.01,180.99,5.5228]
[1753014314736,3.17,181.0,180.99,8.6828]
[1753014315836,3.17,181.0,180.99,3.16]
[1753014316038,3.17,181.0,180.88,3.16]
[1753014316245,5.523,180.99,180.96,5.5237]
[1753014316444,3.17,180.98,180.94,3.16]
[1753014316841,3.17,180.96,180.94,8.6841]
[1753014317041,3.17,180.95,180.94,8.6841]
[1753014317647,3.17,180.97,180.95,5.5239]
[1753014317943,3.17,180.96,180.95,8.6839]
[1753014318345,3.17,180.96,180.94,5.5242]
[1753014318645,3.17,180.95,180.94,8.6842]
[1753014319146,5.5232,180.98,180.94,5.5242]
[1753014319345,3.17,180.96,180.95,3.16]
[1753014319836,3.17,180.95,180.85,3.16]
[1753014320036,5.5249,180.93,180.85,3.16]
[1753014320234,3.17,180.95,180.85,3.16]
[1753014320434,3.17,180.95,180.8,4.57696444]
[1753014320435,3.17,180.94,180.91,3.16]
[1753014320646,3.17,180.94,180.82,3.16]
[1753014321143,3.17,180.89,180.88,3.16]
[1753014321544,3.17,180.89,180.86,3.16]
[1753014321741,3.17,180.89,180.76,376.19696444]
[1753014321945,3.17,180.89,180.78,3.16]
[1753014322147,3.17,180.89,180.81,8.6881]
[1753014323443,6.12807733,180.89,180.79,3.16]
[1753014323748,3.17,180.87,180.79,3.16]
[1753014324046,3.17,180.86,180.83,3.16]
[1753014324441,3.17,180.86,180.83,5.5275]
[1753014324643,3.17,180.86,180.85,3.16]
[1753014325053,105.2,180.88,180.83,3.16]
[1753014325253,3.17,180.87,180.76,3.16]
[1753014325446,3.17,180.87,180.72,3.16]
[1753014325751,3.17,180.83,180.72,3.16]
[1753014325952,5.5296,180.77,180.71,5.5313]
[1753014326155,3.17,180.75,180.72,3.16]
[1753014326654,3.17,180.75,180.74,3.16]
[1753014327457,3.17,180.81,180.74,3.16]
[1753014327758,3.17,180.79,180.74,3.16]
[1753014327957,3.17,180.76,180.75,3.16]
[1753014329158,3.17,180.76,180.66,3.19]
[1753014329756,3.17,180.78,180.61,3.19]
[1753014330151,3.17,180.78,180.58,3.19]
[1753014330460,3.17,180.76,180.58,3.19]
[1753014330954,107.46,180.75,180.58,3.19]
[1753014331157,3.17,180.74,180.58,3.19]
[1753014331355,5.5321,180.69,180.58,3.19]
[1753014331653,107.38,180.71,180.63,3.19]
[1753014331857,3.17,180.7,180.63,3.19]
[1753014332650,8.7019,180.7,180.65,5.5331]
[1753014332958,107.38,180.71,180.66,3.19]
[1753014333149,107.38,180.71,180.5,11.0753]
[1753014333150,3.17,180.72,180.51,3.19]
[1753014333949,3.17,180.63,180.51,3.19]
[1753014335358,3.17,180.65,180.51,3.19]
[1753014335858,8.7032,180.65,180.51,3.19]
[1753014336064,3.17,180.65,180.51,3.19]
[1753014336360,3.17,180.64,180.63,3.19]
[1753014336853,5.5331,180.66,180.5,11.0753]
[1753014336854,3.17,180.66,180.64,3.19]
[1753014337061,161.412329,180.74,180.52,3.19]
[1753014337062,3.17,180.68,180.52,3.19]
[1753014337359,3.17,180.67,180.48,387.34516806]
[1753014337556,3.17,180.67,180.66,3.19]
[1753014338056,3.17,180.67,180.65,3.19]
[1753014338356,3.17,180.7,180.68,3.19]
[1753014339462,3.17,180.69,180.68,3.19]
[1753014340158,3.17,180.71,180.58,3.19]
[1753014340559,5.5327,180.67,180.63,5.5336]
[1753014340857,285.462329,180.74,180.64,3.19]
[1753014341060,5.5326,180.67,180.62,8.7241]
[1753014341262,3.17,180.66,180.63,3.19]
[1753014341458,3.17,180.65,180.63,3.19]
[1753014341666,3.17,180.66,180.64,3.19]
[1753014341865,3.17,180.66,180.65,3.19]
[1753014342161,3.17,180.66,180.54,3.19]
[1753014342664,5.5328,180.67,180.62,5.5339]
[1753014342858,3.17,180.65,180.63,3.19]
[1753014343052,3.17,180.65,180.53,107.32]
[1753014343053,3.17,180.65,180.54,3.19]
[1753014343358,8.7023,180.68,180.54,3.19]
[1753014343558,3.17,180.68,180.54,3.19]
[1753014343762,3.17,180.7,180.56,3.19]
[1753014345362,5.5322,180.69,180.56,3.19]
[1753014345561,3.17,180.68,180.56,3.19]
[1753014346466,3.17,180.68,180.66,3.19]
[1753014346866,107.12,180.73,180.66,3.19]
[1753014347065,3.17,180.67,180.66,3.19]
[1753014349767,3.17,180.66,180.64,8.7234]
[1753014349967,3.17,180.67,180.56,3.19]
[1753014350468,3.17,180.65,180.56,3.19]
[1753014350669,3.17,180.65,180.63,5.5338]
[1753014350867,3.17,180.64,180.63,8.7238]
[1753014352366,3.17,180.72,180.63,3.19]
[1753014352675,3.17,180.7,180.63,3.19]
[1753014352870,5.5328,180.67,180.63,8.7236]
[1753014353070,5.5328,180.67,180.64,3.19]
[1753014353071,3.17,180.65,180.64,3.19]
[1753014353673,5.5329,180.66,180.62,5.534]